[Event "Israel Team Championship 2025"]
[Site "Israel"]
[Date "2025.01.17"]
[Round "3.31"]
[White "Rodshtein, Maxim"]
[Black "Tifferet, Shakked"]
[Result "1-0"]
[Annotator "TA"]
[ECO "A14"]
[WhiteElo "2635"]
[BlackElo "2305"]
[PlyCount "81"]
[EventDate "2025.01.07"]
[EventType "team-tourn"]
[EventCountry "ISR"]
[SourceTitle "playchess.com"]
[Source "ChessBase"]
[SourceQuality "1"]
[TimeControl "40/5400+30:1800+30"]

{[%evp 11,81,0,10,4,12,6,10,-11,-12,-7,-4,-16,13,-16,-11,-35,-8,-18,-30,0,-12,-25,1,0,-17,-29,16,15,20,22,58,66,59,33,237,231,253,272,251,192,235,221,344,346,490,487,705,675,822,833,1089,1074,1041,1017,1118,1108,1391,1356,1689,1789,1747,1822,1848,1719,2057,1954,1917,1803,6817,7014,29989,29989]} 1. c4 {[%emt 0:00:08]} e6 {[%emt 0:00:55]} 2. g3 {[%emt 0:02:11]} d5 {[%emt 0:00:18]} 3. Bg2 {[%emt 0:00:07]} Nf6 {[%emt 0:00:06]} 4. Nf3 {[%emt 0:00:23]} Be7 {[%emt 0:00:08]} 5. O-O {[%emt 0:00:55]} O-O {[%emt 0:00:09]} 6. d3 {[%emt 0:00:24]} c5 {[%emt 0:00:48]} 7. Ne5 {[%emt 0:00:20]} Qd6 {[%emt 0:00:15]} 8. f4 {[%emt 0:02:57]} Nbd7 {[%emt 0:01:27]} 9. Nf3 {[%emt 0:07:32] [#] The position is equal.} b5 $1 {[%emt 0:00:14]} 10. cxb5 {[%emt 0:03:39][%cal Oe2e4]} a6 {[%emt 0:00:08]} 11. bxa6 {[%emt 0:00:31]} Bxa6 {[%emt 0:00:08]} 12. Kh1 {[%emt 0:12:06]} Rfc8 {[%emt 0:02:04][%mdl 1024] Black has compensation.} 13. b3 {[%emt 0:11:28]} Qb8 {[%emt 0:01:29]} 14. Nc3 {[%emt 0:06:16]} Ra7 {[%emt 0:01:06]} 15. Bd2 {[%emt 0:02:53][%cal Bc1d2,Bd2e3,Be3d4,Bd4c3][%mdl 32]} c4 {[%emt 0:18:01]} 16. bxc4 {[%emt 0:04:06]} dxc4 {[%emt 0:00:08]} 17. Rb1 {[%emt 0:04:33]} Bb7 {[%emt 0:06:04][%cal Ba6b7,Bb7c6,Bc6a4][%mdl 32]} 18. dxc4 {[%emt 0:17:53]} Qa8 {[%emt 0:00:08]} 19. Be3 {[%emt 0:06:43]} Ra3 {[%emt 0:11:36]} 20. Bd4 {[%emt 0:01:44]} Nc5 {[%emt 0:14:17]} 21. Qc2 {[%emt 0:02:42]} Bc6 {[%emt 0:00:43]} 22. e3 {[%emt 0:03:48]} Nfe4 $2 {[%emt 0:01:13] Black cannot hold the game after this.} (22... Ng4 $14) 23. Ne5 $18 {[%emt 0:01:00]} Rxc3 {[%emt 0:13:47]} 24. Bxc3 {[%emt 0:00:05] Threatens to win with Nxc6.} Ba4 {[%emt 0:00:03]} 25. Qb2 {[%emt 0:00:34] And now Bb4 would win.} f6 {[%emt 0:00:08][%cal Bf7f6,Bf6g5][%mdl 32] [#]} 26. Nf3 {[%emt 0:00:39]} Nd3 {[%emt 0:09:13]} (26... Bc6 $142) 27. Qe2 {[%emt 0:00:06]} Nxc3 {[%emt 0:00:45]} (27... Ndc5 $142) 28. Qxd3 {[%emt 0:00:05]} Nxb1 {[%emt 0:00:26] [#]} (28... Ne4 $142 29. Nd4 Nc5 30. Bxa8 Nxd3) 29. Ng5 $1 {[%emt 0:01:29]} (29. Qxb1 Bc6 $11) 29... fxg5 {[%emt 0:02:51]} 30. Bxa8 {[%emt 0:00:06]} Rxa8 {[%emt 0:00:02]} 31. Qe4 {[%emt 0:01:11]} Ra6 {[%emt 0:02:19]} 32. Qxb1 {[%emt 0:00:06]} (32. Rxb1 $2 {too greedy.} Bc6 $19) 32... Bc6+ {[%emt 0:00:43]} 33. Kg1 {[%emt 0:00:06]} Ra8 {[%emt 0:09:17][%cal Ba6a8,Ba8c8,Bc8d8][%mdl 32] Prevents Qb8+} 34. Qb6 {[%emt 0:01:23]} Rc8 {[%emt 0:00:15]} 35. Qa7 {[%emt 0:00:33]} Kf8 {[%emt 0:01:36]} 36. fxg5+ {[%emt 0:01:01]} Ke8 {[%emt 0:00:01]} 37. h4 {[%emt 0:00:23]} e5 {[%emt 0:01:31]} 38. Qa5 {[%emt 0:02:24]} Rd8 {[%emt 0:01:31]} 39. Qc7 {[%emt 0:01:08]} Ba8 {[%emt 0:01:59]} 40. Qxe5 {[%emt 0:00:15] White threatens Qb5+ and mate.} Rd2 {[%emt 0:00:08]} 41. Qb5+ {[%emt 0:30:12] Weighted Error Value: White=0.08 (flawless) /Black=0.43.  Loses game:     	---       	Black=1      Mistake:       	---       	Black=3      Inaccurate:     	White=2     	Black=5      OK:         	White=11    	Black=8      Best:        	White=2     	Black=1      Strong:       	White=1     	---} ({Worse is} 41. Qxg7 Rg2+ 42. Kh1 Rf2+ 43. Kg1 (43. e4 {gets mated.} Bxe4+ 44. Kg1 Rg2+ 45. Kh1 Rd2+ 46. Kg1 Bc5+) 43... Rg2+ 44. Kh1 Rf2+ 45. Kg1 (45. e4 Bxe4+ 46. Kg1 Rg2+ 47. Kh1 Rd2+ 48. Kg1 Bc5+) 45... Rg2+ $11) 1-0

[Event "Israel Team Championship 2025"]
[Site "Israel"]
[Date "2025.01.17"]
[Round "3.32"]
[White "Poleg, Matan"]
[Black "Nesterov, Arseniy"]
[Result "0-1"]
[Annotator "TA"]
[ECO "A35"]
[WhiteElo "2252"]
[BlackElo "2591"]
[PlyCount "76"]
[EventDate "2025.01.07"]
[EventType "team-tourn"]
[EventCountry "ISR"]
[SourceTitle "playchess.com"]
[Source "ChessBase"]
[SourceQuality "1"]
[TimeControl "40/5400+30:1800+30"]

{[%evp 18,76,12,0,7,0,-6,-26,-22,-29,-27,-48,-37,-37,-33,-58,-39,-59,-53,-79,-44,-141,-152,-137,-121,-167,-92,-153,-150,-228,-220,-244,-262,-421,-432,-411,-245,-242,-239,-239,-244,-244,-233,-246,-246,-839,-798,-808,-839,-1236,-1309,-1183,-1216,-1552,-1391,-1083,-1000,-1796,-1150,-1696,-1635]} 1. e4 {[%emt 0:05:10]} c6 {[%emt 0:00:20]} 2. c4 {[%emt 0:00:51]} d5 {[%emt 0:00:21]} 3. exd5 {[%emt 0:00:06]} cxd5 {[%emt 0:00:06]} 4. cxd5 {[%emt 0:00:08]} Nf6 {[%emt 0:00:07]} 5. Nc3 {[%emt 0:00:03]} Nxd5 {[%emt 0:01:34]} 6. Nf3 {[%emt 0:00:38]} Nc6 {[%emt 0:02:42]} 7. d4 {[%emt 0:00:07]} g6 {[%emt 0:04:27]} 8. Bc4 {[%emt 0:07:24]} Nxc3 {[%emt 0:01:51]} 9. bxc3 {[%emt 0:07:04]} Bg7 {[%emt 0:01:07]} 10. O-O {[%emt 0:00:06]} O-O {[%emt 0:02:36]} 11. a4 {[%emt 0:01:15]} Qa5 {[%emt 0:11:28]} 12. Qb3 {[%emt 0:04:06]} Qc7 {[%emt 0:01:17]} 13. Bd5 {[%emt 0:10:11]} Na5 {[%emt 0:03:50]} 14. Qa2 {[%emt 0:00:08]} e6 {[%emt 0:15:10]} (14... Qxc3 $6 15. Ba3 Nc6 16. Rab1 $14) 15. Be4 {[%emt 0:00:50]} Bd7 {[%emt 0:00:22]} 16. Ba3 {[%emt 0:07:04]} Rfc8 {[%emt 0:01:33]} 17. Bc5 {[%emt 0:01:43]} Bc6 $36 {[%emt 0:01:36][%mdl 2048] Black has some pressure.} 18. Nd2 {[%emt 0:01:52]} Bh6 {[%emt 0:06:34] Threatens to win with ...Bxd2.} 19. Rab1 {[%emt 0:06:16]} ({Better is} 19. Bxc6 $15 Qxc6 20. Rfb1) 19... Bxd2 $17 {[%emt 0:04:14]} 20. Bxc6 {[%emt 0:00:17] [#]} Bf4 $1 {[%emt 0:04:19]} (20... Bxc3 21. Bf3 $15) (20... Qxc6 21. Qxd2 Nc4 (21... Qxa4 22. Be7 $15) 22. Qh6 $15) 21. Bf3 {[%emt 0:04:32]} (21. Bb5 $17) 21... Bxh2+ $19 {[%emt 0:00:14]} 22. Kh1 {[%emt 0:00:01] [#] and g3 should not be overlooked} Qf4 $1 {[%emt 0:01:51]} 23. Rb5 {[%emt 0:14:36] [#]} (23. Bxb7 $2 Qh6 (23... Nxb7 $2 24. Rxb7 Qh6 25. Rfb1 $19) 24. Rfd1 Nxb7 25. Rxb7 Bg3+ 26. Kg1 Qh2+ 27. Kf1 Qh1+ 28. Ke2 Qxg2 $19) (23. Bg4 $17 {might work better.} Qxg4 24. Kxh2) 23... Qh6 $1 {[%emt 0:01:19] ( -> ...Bc7+)} 24. Re1 {[%emt 0:03:04]} (24. Rd1 b6) 24... a6 {[%emt 0:04:11]} ({Much less strong is} 24... Bd6+ 25. Kg1 Qh2+ 26. Kf1 Bxc5 27. dxc5) 25. Rxb7 $2 {[%emt 0:01:01]} (25. Rbb1) 25... Nxb7 {[%emt 0:02:10]} 26. Bxb7 {[%emt 0:00:02]} Bd6+ {[%emt 0:00:20]} (26... Rxc5 $142 27. Bxa8 Rxc3) 27. Kg1 {[%emt 0:00:01]} Qh2+ {[%emt 0:01:04]} (27... Bxc5 28. dxc5 Rab8 29. Bxc8 Rxc8 30. Qc4) 28. Kf1 {[%emt 0:00:01]} Bxc5 {[%emt 0:00:11]} 29. Bxa8 {[%emt 0:01:16]} Bxd4 {[%emt 0:02:24]} 30. cxd4 {[%emt 0:01:33]} Rxa8 {[%emt 0:01:07]} 31. Rxe6 $2 {[%emt 0:13:31][%mdl 4096] Endgame KQR-KQR} (31. f3) 31... Qh1+ {[%emt 0:00:36]} (31... fxe6 32. Qxe6+ Kg7 33. Qe7+ Kh6 34. Qe3+ g5 35. Qe6+ Kg7 36. Qe7+ Kg8 37. Qe6+ Kg7 38. Qe7+ Kg8 39. Qxg5+ Kh8 40. Qf6+ Kg8 41. Qe6+ Kh8 (41... Kg7 42. Qe7+ Kg8 43. Qe6+ Kf8 44. Qf6+ Kg8 45. Qe6+ $11) 42. Qf6+ Kg8 43. Qg5+ Kh8 44. Qf6+ $11) 32. Ke2 {[%emt 0:00:01]} Qh5+ {[%emt 0:00:33]} ({Worse is} 32... fxe6 33. Qxe6+ Kg7 34. Qe5+ Kh6 35. Qe3+ Kg7 (35... g5 $2 36. Qe6+ Kg7 37. Qe7+ Kh6 38. Qf6+ Kh5 39. Qf3+ Kh6 40. Qxa8 $18) 36. Qe5+ Kh6 37. Qe3+ Kg7 38. Qe5+ $11) 33. Ke1 {[%emt 0:00:17]} fxe6 {[%emt 0:02:11]} 34. Qxe6+ {[%emt 0:00:02]} Kg7 {[%emt 0:00:05]} 35. Qe7+ {[%emt 0:00:11]} Kh6 {[%emt 0:00:12]} 36. Qe3+ {[%emt 0:00:04]} Qg5 {[%emt 0:00:07]} 37. Qh3+ {[%emt 0:00:04]} Kg7 {[%emt 0:00:05] ( -> ...Qc1+)} 38. Qd7+ {[%emt 0:00:03]} Kh8 {[%emt 0:00:04]} 0-1

[Event "Israel Team Championship 2025"]
[Site "Israel"]
[Date "2025.01.17"]
[Round "3.33"]
[White "Steinberg, Nitzan"]
[Black "Zlatin, Alexander"]
[Result "1-0"]
[Annotator "TA"]
[ECO "C42"]
[WhiteElo "2565"]
[BlackElo "2322"]
[PlyCount "91"]
[EventDate "2025.01.07"]
[EventType "team-tourn"]
[EventCountry "ISR"]
[SourceTitle "playchess.com"]
[Source "ChessBase"]
[SourceQuality "1"]
[TimeControl "40/5400+30:1800+30"]

{[%evp 9,91,6,30,28,39,38,47,20,29,20,71,65,65,65,64,66,82,66,69,77,65,64,118,68,66,66,104,79,88,75,75,0,79,78,108,62,111,102,111,116,111,115,255,254,247,242,253,247,237,256,257,271,277,269,268,268,267,270,277,291,325,268,288,272,284,281,479,452,436,474,550,568,1039,952,1163,1155,1466,1438,1556,2080,2460,2400,2731,2729]} 1. e4 {[%emt 0:00:15]} e5 {[%emt 0:00:05]} 2. Nf3 {[%emt 0:00:10]} Nf6 {[%emt 0:00:23]} 3. Nxe5 {[%emt 0:01:04]} d6 {[%emt 0:00:19]} 4. Nf3 {[%emt 0:01:53]} Nxe4 {[%emt 0:00:06]} 5. c4 {[%emt 0:04:44]} c6 {[%emt 0:06:49]} 6. Nc3 {[%emt 0:04:10]} Nf6 {[%emt 0:08:10]} 7. d4 {[%emt 0:01:16]} Be7 {[%emt 0:00:06]} 8. h3 {[%emt 0:05:16]} O-O {[%emt 0:03:35]} 9. Bd3 {[%emt 0:00:07]} Re8 {[%emt 0:00:13]} (9... d5 $11 {remains equal.}) 10. O-O $16 {[%emt 0:00:22]} Na6 {[%emt 0:13:58][%cal Bb8a6,Ba6c7,Bc7e6][%mdl 32]} 11. Re1 {[%emt 0:05:40]} Nc7 {[%emt 0:03:03]} 12. Bf4 {[%emt 0:04:44] White is much more active.} Ne6 {[%emt 0:04:16]} 13. Bh2 {[%emt 0:00:20]} d5 {[%emt 0:08:01]} 14. Be5 {[%emt 0:11:41]} dxc4 {[%emt 0:06:40]} 15. Bxc4 {[%emt 0:00:34]} Nd7 {[%emt 0:03:59] [#]} ({Black should try} 15... Nd5 $14) 16. Bg3 {[%emt 0:05:54]} (16. d5 $1 $16 {[%cal Rd5e6]} cxd5 17. Nxd5 (17. Qxd5 Nb6 $14)) 16... Nb6 $14 {[%emt 0:01:36]} 17. Bb3 {[%emt 0:00:11]} Bb4 {[%emt 0:05:27]} 18. a3 {[%emt 0:03:52]} Bd6 {[%emt 0:01:51]} 19. Bh4 {[%emt 0:14:19]} Be7 {[%emt 0:03:34]} 20. Bg3 {[%emt 0:01:21]} Bd6 $1 {[%emt 0:00:02]} 21. Bxd6 {[%emt 0:07:41]} Qxd6 {[%emt 0:00:01] [#]} 22. Qd3 {[%emt 0:00:08]} (22. Ne5 $1 $16) 22... Bd7 {[%emt 0:06:59]} (22... Qd8 $14 {is superior.}) 23. Ne4 $36 {[%emt 0:01:00][%cal Bc3e4,Be4d6,Bd6f5][%mdl 2080] White is in control.} Qf4 {[%emt 0:02:12]} 24. Ne5 {[%emt 0:02:52][%cal Bf3e5,Be5d3,Bd3c5][%mdl 32]} Re7 {[%emt 0:21:05]} 25. Nd6 {[%emt 0:23:26]} (25. Qc3 {simplifies} Nxd4 26. Qxd4 Qxe5 27. Qb4) 25... Qxd4 {[%emt 0:00:00]} (25... Ng5 $16 {might work better.}) 26. Nf5 $18 {[%emt 0:00:00]} (26. Nxb7 Qxd3 27. Nxd3 Kf8 $14) 26... Qxd3 {[%emt 0:00:00]} 27. Nxe7+ {[%emt 0:00:00]} Kf8 {[%emt 0:00:00][%cal Bg8f8,Bf8e7,Be7f6,Bf6f5][%mdl 32]} 28. Nxd3 {[%emt 0:00:00]} Kxe7 {[%emt 0:00:00]} 29. Nc5 {[%emt 0:00:00]} Kf6 {[%emt 0:00:00]} 30. Bxe6 {[%emt 0:00:00]} Bxe6 {[%emt 0:00:00]} 31. Nxb7 {[%emt 0:00:00]} Bd5 {[%emt 0:00:56]} 32. Nc5 {[%emt 0:00:00]} a5 {[%emt 0:00:42]} 33. a4 {[%emt 0:00:00]} h5 {[%emt 0:00:50]} 34. h4 {[%emt 0:00:00]} Kf5 {[%emt 0:00:54]} 35. f3 {[%emt 0:00:00]} Nc4 {[%emt 0:01:33]} 36. b3 {[%emt 0:00:00]} Ne5 {[%emt 0:00:28]} 37. Reb1 {[%emt 0:00:00]} Rb8 $2 {[%emt 0:00:28] [#]} (37... Ra7 38. b4 axb4 39. Rxb4 Nc4) 38. b4 $1 {[%emt 0:00:00]} axb4 {[%emt 0:00:36]} (38... Rd8 39. bxa5) 39. a5 {[%emt 0:03:12][%cal Ba4a5,Ba5a6,Ba6a7][%mdl 32]} (39. Na6 Rb7 40. Nxb4 Bc4 $18) 39... Nc4 {[%emt 0:00:07]} 40. a6 {[%emt 0:01:03] aiming for a7.} Rb5 {[%emt 0:00:54]} 41. a7 {[%emt 0:32:51]} Nb6 {[%emt 0:30:20]} 42. Na6 {[%emt 0:00:00]} (42. a8=R Nxa8 43. Ne4 (43. Rxa8 Rxc5 44. Rxb4 Rc1+ 45. Kh2 c5 $11) 43... Rb8 $16) 42... b3 {[%emt 0:00:00]} 43. Nc7 {[%emt 0:00:00]} b2 {[%emt 0:00:00]} 44. Ra6 {[%emt 0:00:00]} ({Less strong is} 44. a8=R bxa1=N 45. Raxa1 Rxb1+ 46. Rxb1 Nc8 47. Nxd5 cxd5 $18) (44. Nxb5 bxa1=Q 45. Rxa1 (45. Nd6+ Ke6 $16) 45... cxb5 $18) 44... Rc5 {[%emt 0:00:00]} 45. Rxb2 {[%emt 0:00:00]} Rc1+ {[%emt 0:00:00]} 46. Kh2 {[%emt 0:00:00]} 1-0

[Event "Israel Team Championship 2025"]
[Site "Israel"]
[Date "2025.01.17"]
[Round "3.34"]
[White "Steiner-Prozhanski, Giora"]
[Black "Bronstein, Or"]
[Result "0-1"]
[Annotator "TA"]
[ECO "E20"]
[WhiteElo "2258"]
[BlackElo "2452"]
[PlyCount "66"]
[EventDate "2025.01.07"]
[EventType "team-tourn"]
[EventCountry "ISR"]
[SourceTitle "playchess.com"]
[Source "ChessBase"]
[SourceQuality "1"]
[TimeControl "40/5400+30:1800+30"]

{[%evp 10,66,10,6,20,0,0,-8,-12,-1,-3,-9,-5,-10,-12,-23,-5,-64,-8,-8,-14,-35,0,0,0,10,3,7,0,8,0,-4,0,0,0,-14,0,0,34,-22,-27,-26,-37,-19,-24,-48,-47,-30,0,-639,-632,-630,-581,-560,-407,-355,-343,-29993,-29994]} 1. d4 {[%emt 0:00:19]} Nf6 {[%emt 0:00:47]} 2. c4 {[%emt 0:00:05]} e6 {[%emt 0:00:04]} 3. Nc3 {[%emt 0:00:14]} Bb4 {[%emt 0:00:40]} 4. f3 {[%emt 0:00:03]} c5 {[%emt 0:02:37]} 5. d5 {[%emt 0:03:34]} d6 {[%emt 0:03:11]} 6. e4 {[%emt 0:00:07]} b5 {[%emt 0:02:44]} 7. Nge2 {[%emt 0:00:08]} bxc4 {[%emt 0:02:26]} 8. Nf4 {[%emt 0:00:36]} e5 {[%emt 0:00:31]} 9. Nfe2 {[%emt 0:00:13]} Nbd7 {[%emt 0:00:07]} (9... Nh5 10. g4 Qh4+ 11. Kd2 Nf6) 10. Ng3 {[%emt 0:00:20][%cal Og3f5]} Nb6 {[%emt 0:00:07]} 11. Be2 {[%emt 0:00:55]} Ng8 {[%emt 0:00:19]} 12. h4 {[%emt 0:01:32]} h6 {[%emt 0:13:36]} 13. h5 {[%emt 0:02:01]} (13. f4 $11) 13... Nf6 {[%emt 0:22:14]} ({Better is} 13... f5 $15) 14. Qc2 {[%emt 0:03:59]} O-O {[%emt 0:02:02]} 15. Kf2 {[%emt 0:03:23]} Rb8 {[%emt 0:07:59]} 16. Nd1 {[%emt 0:04:52][%cal Bc3d1,Bd1e3,Be3f5][%mdl 32]} Bd7 {[%emt 0:07:13]} 17. Ne3 {[%emt 0:02:39]} Ba4 {[%emt 0:05:47]} 18. b3 {[%emt 0:12:28]} cxb3 {[%emt 0:00:04]} 19. axb3 {[%emt 0:00:05]} Bd7 {[%emt 0:00:13]} 20. Nef5 {[%emt 0:00:45] [#]} c4 $1 {[%emt 0:04:10]} 21. bxc4 {[%emt 0:17:35]} Bc5+ {[%emt 0:00:01]} 22. Be3 {[%emt 0:03:53] Hoping for Bxc5.} Qc7 {[%emt 0:00:21]} (22... Bxf5 {simplifies} 23. Bxc5 Bxe4 24. fxe4 dxc5 25. Rhb1 Ne8) 23. Ra2 {[%emt 0:17:49]} Rb7 {[%emt 0:03:29]} 24. Qd2 {[%emt 0:05:30]} (24. Ra5 $14) 24... Bxe3+ {[%emt 0:09:02]} (24... Na4 {seems wilder.} 25. Bxc5 Nxc5 26. Qa5 Qb8) 25. Qxe3 {[%emt 0:07:07]} Nxc4 {[%emt 0:02:42]} 26. Bxc4 {[%emt 0:00:47]} Qxc4 {[%emt 0:00:02]} 27. Rha1 {[%emt 0:00:24]} Bxf5 {[%emt 0:07:44]} 28. Nxf5 {[%emt 0:00:25]} Rfb8 {[%emt 0:00:28] and ...Rb1 should not be overlooked} (28... Nxh5 29. Nxd6 Qc7 30. Nxb7 Qxb7 31. Rd2 $18 (31. Qxa7 Qc8 $18) (31. Rxa7 Qb4 $18)) (28... Rb1 $5 29. Qe2 Qc5+ 30. Qe3 Qb4 31. Rxb1 Qxb1 32. Qxa7 Nxh5 $15) 29. g4 $2 {[%emt 0:05:03][%mdl 8192]} (29. Nxd6 Rb2+ 30. Rxb2 Rxb2+ 31. Kg3 (31. Kg1 {is a self mate.} Qc2 32. Kf1 Qxg2+ 33. Ke1 Qh1+) 31... Nxh5+ (31... Qc2 32. Rg1 $17) 32. Kh2 Qb4 $19 (32... Qc2 33. Rg1 $15)) (29. Qc1 $11 Qb4 30. Qa3) 29... Rb2+ $19 {[%emt 0:02:27]} 30. Rxb2 {[%emt 0:00:12]} Rxb2+ {[%emt 0:00:01]} 31. Kg3 {[%emt 0:02:02]} Qc2 {[%emt 0:00:12]} 32. Qg1 {[%emt 0:01:03] Inhibits Qh2+.} Qd2 {[%emt 0:01:54] ( -> ...Qf4+) Repels Ne3} 33. Ra3 $2 {[%emt 0:03:09] [#]} (33. Ne3 $19 Rb3 34. Re1) 33... Nxh5+ $1 {[%emt 0:00:37][%mdl 512]} 0-1

[Event "Israel Team Championship 2025"]
[Site "Israel"]
[Date "2025.01.17"]
[Round "3.35"]
[White "Zanan, Evgeny"]
[Black "Axelrod, Arie"]
[Result "0-1"]
[Annotator "TA"]
[ECO "C02"]
[WhiteElo "2450"]
[BlackElo "2161"]
[PlyCount "98"]
[EventDate "2025.01.07"]
[EventType "team-tourn"]
[EventCountry "ISR"]
[SourceTitle "playchess.com"]
[Source "ChessBase"]
[SourceQuality "1"]
[TimeControl "40/5400+30:1800+30"]

{[%evp 10,98,19,22,33,9,4,12,14,2,29,27,28,10,61,58,41,10,16,11,45,22,10,0,12,0,55,-33,0,0,-6,-42,56,-125,-138,-136,-140,-140,0,0,0,-33,-29,-32,-23,-20,-27,-32,-13,-25,-18,-66,-60,-138,-12,-27,666,-16,-25,-28,-12,-11,-22,-20,-18,-16,-13,-106,-106,-110,-105,-129,-132,-114,-117,-121,-131,-262,-262,-308,-288,-527,-408,-632,-626,-564,-602,-747,-737,-858,-824]} 1. e4 {[%emt 0:00:06]} e6 {[%emt 0:00:02]} 2. d4 {[%emt 0:00:09]} d5 {[%emt 0:00:02]} 3. e5 {[%emt 0:03:52]} c5 {[%emt 0:00:05]} 4. c3 {[%emt 0:00:04]} Ne7 {[%emt 0:00:08]} 5. Na3 {[%emt 0:00:26]} Nec6 {[%emt 0:00:14]} 6. Nc2 {[%emt 0:01:00]} b6 {[%emt 0:00:02]} 7. Nf3 {[%emt 0:03:33]} Be7 {[%emt 0:00:04]} 8. a3 {[%emt 0:02:13]} a5 {[%emt 0:00:15]} 9. h4 {[%emt 0:00:58]} Ba6 {[%emt 0:01:54]} 10. Bxa6 {[%emt 0:03:53]} Nxa6 {[%emt 0:00:02]} 11. h5 {[%emt 0:00:07]} f5 {[%emt 0:00:19]} (11... h6 $11) 12. exf6 $14 {[%emt 0:06:25]} gxf6 {[%emt 0:04:53]} 13. Qe2 {[%emt 0:06:56]} Nc7 {[%emt 0:00:04]} 14. O-O {[%emt 0:05:26]} Qd6 {[%emt 0:02:26]} 15. c4 {[%emt 0:16:10]} O-O-O {[%emt 0:01:09]} 16. Be3 {[%emt 0:09:51]} Rhg8 {[%emt 0:00:29]} 17. Rfd1 {[%emt 0:16:24] and dxc5 would now be decisive} Rg4 {[%emt 0:00:57]} (17... a4 $1 $11) 18. Nh2 {[%emt 0:05:52]} (18. Nce1 $14) 18... Rh4 {[%emt 0:03:13]} (18... Re4 {simplifies} 19. cxd5 exd5 20. Nf1 f5) 19. g3 {[%emt 0:01:02]} Rg8 {[%emt 0:00:06]} 20. Kh1 {[%emt 0:01:15]} (20. Nf3 $5 Rh3 (20... Rxh5 21. dxc5 bxc5 22. b4 $14) 21. Nfe1 $11) 20... Rh3 {[%emt 0:03:11]} (20... Re4 $15) 21. Qf3 $2 {[%emt 0:02:24]} (21. Kg2 $14 Rh4 22. Kh1) 21... cxd4 $17 {[%emt 0:04:43]} 22. Bxd4 {[%emt 0:00:06]} Ne5 {[%emt 0:01:49]} (22... dxc4 23. Bxf6 Ne5 24. Qg2 $16) 23. Bxe5 {[%emt 0:00:16]} Qxe5 {[%emt 0:00:14]} ({Black should play} 23... fxe5 $17 24. Ne3 e4) 24. cxd5 $11 {[%emt 0:04:22]} Nxd5 {[%emt 0:00:10][%cal Oe7c5]} 25. Re1 {[%emt 0:03:38]} (25. Nd4 $5 Bc5 (25... Qxh5 26. Qxh5 Rxh5 27. Nxe6 $14) (25... Rxh5 $2 26. Nc6 $18) 26. Nxe6 Bxf2 (26... Qxh5 27. Qxh5 Rxh5 28. g4 $16) 27. Rxd5 (27. Qxd5 $2 Rxh2+ 28. Kxh2 Qxg3+ 29. Kh1 Qh4#) 27... Qxe6 28. Rc1+ Kb8 (28... Bc5 $2 29. Rdxc5+ bxc5 30. Rxc5+ Kd8 31. Qa8+ Ke7 32. Rc7+ Kd6 33. Qc6+ Ke5 34. Qc3+ Kf5 35. Rc5+ Ke4 36. Qe1+ Kd4 37. Qxe6 $18) 29. Qf4+ Ka8 30. Qf3 $11) 25... Qxh5 {[%emt 0:01:05]} 26. Qxh5 {[%emt 0:00:26]} Rxh5 {[%emt 0:00:02]} 27. Rxe6 {[%emt 0:00:11]} Bc5 {[%emt 0:00:14]} 28. Re2 {[%emt 0:00:01]} Rg6 {[%emt 0:02:08]} 29. Ne1 $1 {[%emt 0:02:38]} f5 $1 {[%emt 0:01:10]} 30. Nef3 {[%emt 0:02:00]} (30. Rd1 $1 $11 {was preferable.} Nf6 (30... f4 $2 31. g4 $18) 31. Kg2) 30... f4 $15 {[%emt 0:00:02]} 31. Re5 {[%emt 0:02:40] [#]} (31. g4 $15 Rxg4 32. Re5 Rxe5 33. Nxe5) 31... fxg3 {[%emt 0:02:06]} 32. Rxh5 $11 {[%emt 0:01:24]} g2+ $1 {[%emt 0:00:02]} 33. Kg1 {[%emt 0:00:00]} Nf4 $40 {[%emt 0:00:15][%cal Rf4e2][%mdl 128] Black has some attack.} 34. Rg5 {[%emt 0:01:04]} (34. Rxh7 $2 Ne2#) 34... Nh3+ {[%emt 0:00:04]} 35. Kxg2 {[%emt 0:00:03]} Nxg5 {[%emt 0:00:09]} 36. Ne5 {[%emt 0:00:47]} Rg7 {[%emt 0:00:39] White must now prevent ...Nf7+.} 37. Nd3 $1 {[%emt 0:00:45]} Bd6 {[%emt 0:01:42]} 38. f4 {[%emt 0:00:28] [#]} (38. Nf3 $11) 38... Ne6+ $1 $17 {[%emt 0:01:21]} 39. Kf3 {[%emt 0:00:10] [#]} Rf7 $1 {[%emt 0:00:54][%cal Re6f4] Black is much more active.} 40. Rc1+ {[%emt 0:00:51]} Kb7 {[%emt 0:00:20][%cal Re6f4]} 41. Ng4 {[%emt 0:20:10]} Nxf4 {[%emt 0:04:20]} 42. Nde5 {[%emt 0:02:27]} Rf8 {[%emt 0:11:06]} 43. Ke4 {[%emt 0:02:59] Dodges Nd3} (43. Nd7 $17 {was the only defense.} Rd8 44. Ngf6) 43... h5 $19 {[%emt 0:00:34]} 44. Nc4 {[%emt 0:00:32]} Bc7 {[%emt 0:01:42]} 45. Nh6 $2 {[%emt 0:00:38]} (45. Nge5) 45... Ne2 {[%emt 0:03:19]} 46. Rc2 {[%emt 0:02:39]} (46. Re1 $142 Ng3+ 47. Kd3) 46... Ng3+ {[%emt 0:00:06]} 47. Kd5 {[%emt 0:00:01]} b5 {[%emt 0:04:24]} 48. Ne5 {[%emt 0:01:13]} Rd8+ {[%emt 0:00:27]} 49. Ke6 {[%emt 0:00:07]} Rd6+ {[%emt 0:00:40]} 0-1